[Event "Titled Tuesday Blitz July 11 Early 2023"]
[White "Katz, Alexander"]
[Black "only_strong_moves"]
[WhiteFideId "2039796"]
[WhiteElo "2636"]
[BlackElo "2522"]
[Result "0-1"]
[Round "8"]
[TimeControl "180+2"]
[Date "2023.07.11"]
[WhiteClock "0:00:04"]
[BlackClock "0:00:06"]
[Board "64"]

1. e4 {[%clk 0:03:00]}  e5 {[%clk 0:02:59]} 2. Nf3 {[%clk 0:03:01]}  Nc6 {[%clk 0:02:59]} 3. Bb5 {[%clk 0:03:01]}  Nf6 {[%clk 0:02:58]} 4. d3 {[%clk 0:03:01]}  Bc5 {[%clk 0:02:56]} 5. Bxc6 {[%clk 0:03:02]}  dxc6 {[%clk 0:02:56]} 6. Nbd2 {[%clk 0:03:02]}  O-O {[%clk 0:02:55]} 7. O-O {[%clk 0:03:03]}  Re8 {[%clk 0:02:45]} 8. b3 {[%clk 0:03:03]}  Bg4 {[%clk 0:02:45]} 9. Bb2 {[%clk 0:03:03]}  Nd7 {[%clk 0:02:33]} 10. h3 {[%clk 0:03:02]}  Bh5 {[%clk 0:02:30]} 11. Nc4 {[%clk 0:02:56]}  f6 {[%clk 0:02:28]} 12. g4 {[%clk 0:02:44]}  Bf7 {[%clk 0:02:25]} 13. Ne3 {[%clk 0:02:38]}  Nf8 {[%clk 0:02:17]} 14. Nf5 {[%clk 0:02:30]}  Ne6 {[%clk 0:02:17]} 15. c3 {[%clk 0:02:30]}  Nf4 {[%clk 0:02:08]} 16. d4 {[%clk 0:02:29]}  exd4 {[%clk 0:02:09]} 17. cxd4 {[%clk 0:02:29]}  Bf8 {[%clk 0:02:07]} 18. Qd2 {[%clk 0:01:58]}  Rxe4 {[%clk 0:02:02]} 19. Ng3 {[%clk 0:01:57]}  Qd5 {[%clk 0:01:48]} 20. Nxe4 {[%clk 0:01:50]}  Qxe4 {[%clk 0:01:49]} 21. Qe3 {[%clk 0:01:50]}  Nxh3+ {[%clk 0:01:40]} 22. Kh2 {[%clk 0:01:47]}  Qxg4 {[%clk 0:01:39]} 23. Ne5 {[%clk 0:01:36]}  fxe5 {[%clk 0:01:28]} 24. Qxh3 {[%clk 0:01:33]}  Qe2 {[%clk 0:01:24]} 25. Bc3 {[%clk 0:01:15]}  exd4 {[%clk 0:01:12]} 26. Bxd4 {[%clk 0:01:16]}  Bd6+ {[%clk 0:01:12]} 27. Kg1 {[%clk 0:01:15]}  Qe4 {[%clk 0:00:58]} 28. Rad1 {[%clk 0:00:50]}  Bd5 {[%clk 0:00:54]} 29. f3 {[%clk 0:00:49]}  Qc2 {[%clk 0:00:45]} 30. Qg2 {[%clk 0:00:41]}  Qxg2+ {[%clk 0:00:41]} 31. Kxg2 {[%clk 0:00:42]}  Rf8 {[%clk 0:00:39]} 32. Rde1 {[%clk 0:00:40]}  Rf5 {[%clk 0:00:29]} 33. Be3 {[%clk 0:00:27]}  Rf6 {[%clk 0:00:28]} 34. Rd1 {[%clk 0:00:09]}  h5 {[%clk 0:00:25]} 35. Bd4 {[%clk 0:00:08]}  Rg6+ {[%clk 0:00:24]} 36. Kf2 {[%clk 0:00:08]}  Bg3+ {[%clk 0:00:21]} 37. Ke2 {[%clk 0:00:09]}  Re6+ {[%clk 0:00:20]} 38. Kd3 {[%clk 0:00:09]}  h4 {[%clk 0:00:16]} 39. Rd2 {[%clk 0:00:04]}  b6 {[%clk 0:00:15]} 40. b4 {[%clk 0:00:04]}  b5 {[%clk 0:00:14]} 41. Rg1 {[%clk 0:00:04]}  Bxf3 {[%clk 0:00:12]} 42. Kc3 {[%clk 0:00:04]}  Bd5 {[%clk 0:00:11]} 43. Bxa7 {[%clk 0:00:04]}  Rf6 {[%clk 0:00:11]} 44. Bd4 {[%clk 0:00:04]}  Rf3+ {[%clk 0:00:11]} 45. Rd3 {[%clk 0:00:04]}  Rxd3+ {[%clk 0:00:06]} 46. Kxd3 {[%clk 0:00:05]}  Bxa2 {[%clk 0:00:06]} 47. Ke3 {[%clk 0:00:06]}  Bd5 {[%clk 0:00:06]} 48. Bc3 {[%clk 0:00:06]}  Kf7 {[%clk 0:00:06]} 49. Be1 {[%clk 0:00:06]}  Bd6 {[%clk 0:00:05]} 50. Bxh4 {[%clk 0:00:05]}  Bxb4 {[%clk 0:00:05]} 51. Rf1+ {[%clk 0:00:06]}  Ke6 {[%clk 0:00:06]} 52. Bg3 {[%clk 0:00:06]}  Bc5+ {[%clk 0:00:06]} 53. Kd2 {[%clk 0:00:07]}  Bd6 {[%clk 0:00:06]} 54. Re1+ {[%clk 0:00:07]}  Kd7 {[%clk 0:00:06]} 55. Bh4 {[%clk 0:00:06]}  c5 {[%clk 0:00:05]} 56. Rg1 {[%clk 0:00:06]}  Be5 {[%clk 0:00:05]} 57. Ke3 {[%clk 0:00:04]}  Bd4+ {[%clk 0:00:05]} 58. Kf4 {[%clk 0:00:04]}  Bxg1 {[%clk 0:00:06]} 0-1


[Site "https://www.chess.com"]

[Event "Titled Tuesday Blitz July 11 Early 2023"]
[White "Ovchinnikov, Vsevolod"]
[Black "Lehtosaari, Mauri"]
[WhiteFideId "24176842"]
[BlackFideId "501999"]
[WhiteElo "2615"]
[BlackElo "2513"]
[Result "1-0"]
[Round "8"]
[TimeControl "180+2"]
[Date "2023.07.11"]
[WhiteClock "0:00:29"]
[BlackClock "0:00:00"]
[Board "67"]

1. d4 {[%clk 0:03:00]}  d5 {[%clk 0:02:59]} 2. c4 {[%clk 0:03:00]}  c6 {[%clk 0:02:57]} 3. Nf3 {[%clk 0:03:00]}  Nf6 {[%clk 0:02:58]} 4. g3 {[%clk 0:03:01]}  Bg4 {[%clk 0:02:51]} 5. Ne5 {[%clk 0:02:59]}  Be6 {[%clk 0:02:51]} 6. cxd5 {[%clk 0:02:57]}  Bxd5 {[%clk 0:02:47]} 7. f3 {[%clk 0:02:56]}  Nfd7 {[%clk 0:02:31]} 8. Nd3 {[%clk 0:02:53]}  f6 {[%clk 0:02:30]} 9. Nc3 {[%clk 0:02:52]}  Bf7 {[%clk 0:02:29]} 10. e4 {[%clk 0:02:48]}  g6 {[%clk 0:02:26]} 11. Be3 {[%clk 0:02:45]}  Bg7 {[%clk 0:02:26]} 12. h4 {[%clk 0:02:36]}  Qc7 {[%clk 0:02:21]} 13. f4 {[%clk 0:02:23]}  h5 {[%clk 0:02:15]} 14. Bh3 {[%clk 0:02:13]}  a5 {[%clk 0:02:07]} 15. O-O {[%clk 0:02:09]}  g5 {[%clk 0:01:57]} 16. Kh1 {[%clk 0:01:48]}  gxh4 {[%clk 0:01:33]} 17. gxh4 {[%clk 0:01:49]}  Na6 {[%clk 0:01:33]} 18. a3 {[%clk 0:01:49]}  Bh6 {[%clk 0:01:31]} 19. Rc1 {[%clk 0:01:38]}  Nf8 {[%clk 0:00:57]} 20. Qf3 {[%clk 0:01:31]}  Be6 {[%clk 0:00:50]} 21. Bxe6 {[%clk 0:01:00]}  Nxe6 {[%clk 0:00:50]} 22. d5 {[%clk 0:00:54]}  Ng7 {[%clk 0:00:41]} 23. dxc6 {[%clk 0:00:47]}  bxc6 {[%clk 0:00:41]} 24. f5 {[%clk 0:00:44]}  Bxe3 {[%clk 0:00:37]} 25. Qxe3 {[%clk 0:00:45]}  Qd6 {[%clk 0:00:26]} 26. Rg1 {[%clk 0:00:42]}  O-O {[%clk 0:00:16]} 27. Nf4 {[%clk 0:00:32]}  Rf7 {[%clk 0:00:00]} 28. Nxh5 {[%clk 0:00:29]} 1-0


[Site "https://www.chess.com"]

[Event "Titled Tuesday Blitz July 11 Early 2023"]
[White "Souleidis, Georgios"]
[Black "Osmak, Yuliia"]
[WhiteFideId "4206827"]
[BlackFideId "14101602"]
[WhiteElo "2609"]
[BlackElo "2510"]
[Result "1-0"]
[Round "8"]
[TimeControl "180+2"]
[Date "2023.07.11"]
[WhiteClock "0:00:11"]
[BlackClock "0:00:00"]
[Board "69"]

1. e4 {[%clk 0:03:00]}  c5 {[%clk 0:02:59]} 2. Nf3 {[%clk 0:03:00]}  Nc6 {[%clk 0:02:59]} 3. Bc4 {[%clk 0:03:00]}  a6 {[%clk 0:02:56]} 4. O-O {[%clk 0:02:49]}  b5 {[%clk 0:02:55]} 5. Bd3 {[%clk 0:02:45]}  Bb7 {[%clk 0:02:52]} 6. c3 {[%clk 0:02:44]}  e5 {[%clk 0:02:46]} 7. Bc2 {[%clk 0:02:42]}  Nf6 {[%clk 0:02:44]} 8. d4 {[%clk 0:02:42]}  d6 {[%clk 0:02:42]} 9. Bg5 {[%clk 0:02:37]}  Be7 {[%clk 0:02:41]} 10. Bxf6 {[%clk 0:02:37]}  Bxf6 {[%clk 0:02:41]} 11. dxc5 {[%clk 0:02:27]}  dxc5 {[%clk 0:02:42]} 12. a4 {[%clk 0:02:26]}  O-O {[%clk 0:02:32]} 13. Qe2 {[%clk 0:02:24]}  c4 {[%clk 0:02:29]} 14. axb5 {[%clk 0:02:04]}  axb5 {[%clk 0:02:30]} 15. Rxa8 {[%clk 0:02:03]}  Qxa8 {[%clk 0:02:31]} 16. Na3 {[%clk 0:02:04]}  Qa5 {[%clk 0:02:24]} 17. Rd1 {[%clk 0:01:59]}  Rd8 {[%clk 0:02:20]} 18. g3 {[%clk 0:01:47]}  Bc8 {[%clk 0:02:00]} 19. Rd5 {[%clk 0:01:33]}  Ba6 {[%clk 0:01:25]} 20. Kg2 {[%clk 0:01:27]}  h6 {[%clk 0:01:24]} 21. h4 {[%clk 0:01:27]}  Qb6 {[%clk 0:01:22]} 22. Nh2 {[%clk 0:01:18]}  Be7 {[%clk 0:00:48]} 23. Ng4 {[%clk 0:01:12]}  Bxa3 {[%clk 0:00:41]} 24. bxa3 {[%clk 0:01:11]}  f6 {[%clk 0:00:41]} 25. Qd2 {[%clk 0:00:55]}  Bc8 {[%clk 0:00:35]} 26. Nxh6+ {[%clk 0:00:36]}  gxh6 {[%clk 0:00:33]} 27. Qxh6 {[%clk 0:00:37]}  Ne7 {[%clk 0:00:17]} 28. Rxd8+ {[%clk 0:00:29]}  Qxd8 {[%clk 0:00:18]} 29. Qxf6 {[%clk 0:00:29]}  Bb7 {[%clk 0:00:16]} 30. Qxe5 {[%clk 0:00:24]}  Bc6 {[%clk 0:00:16]} 31. h5 {[%clk 0:00:22]}  Kf7 {[%clk 0:00:14]} 32. Qf4+ {[%clk 0:00:18]}  Ke8 {[%clk 0:00:13]} 33. g4 {[%clk 0:00:18]}  Kd7 {[%clk 0:00:12]} 34. g5 {[%clk 0:00:17]}  Qh8 {[%clk 0:00:12]} 35. Qg4+ {[%clk 0:00:13]}  Kc7 {[%clk 0:00:11]} 36. g6 {[%clk 0:00:12]}  Qxc3 {[%clk 0:00:08]} 37. Bd1 {[%clk 0:00:13]}  Bd7 {[%clk 0:00:08]} 38. Qg3+ {[%clk 0:00:12]}  Qxg3+ {[%clk 0:00:07]} 39. Kxg3 {[%clk 0:00:13]}  Kd6 {[%clk 0:00:06]} 40. f4 {[%clk 0:00:13]}  c3 {[%clk 0:00:05]} 41. Bc2 {[%clk 0:00:12]}  Bc6 {[%clk 0:00:05]} 42. f5 {[%clk 0:00:11]}  Ke5 {[%clk 0:00:05]} 43. h6 {[%clk 0:00:11]}  Kf6 {[%clk 0:00:00]} 44. Kf4 {[%clk 0:00:11]} 1-0


[Site "https://www.chess.com"]

[Event "Titled Tuesday Blitz July 11 Early 2023"]
[White "Brunner, Nicolas"]
[Black "Niekras, Dawid"]
[WhiteFideId "620246"]
[BlackFideId "1160451"]
[WhiteElo "2504"]
[BlackElo "2609"]
[Result "0-1"]
[Round "8"]
[TimeControl "180+2"]
[Date "2023.07.11"]
[WhiteClock "0:00:00"]
[BlackClock "0:00:27"]
[Board "71"]

1. Nf3 {[%clk 0:03:00]}  g6 {[%clk 0:02:52]} 2. e4 {[%clk 0:02:59]}  c5 {[%clk 0:02:52]} 3. d4 {[%clk 0:02:57]}  cxd4 {[%clk 0:02:53]} 4. Nxd4 {[%clk 0:02:57]}  Nc6 {[%clk 0:02:53]} 5. c4 {[%clk 0:02:56]}  Nf6 {[%clk 0:02:53]} 6. Nc3 {[%clk 0:02:56]}  d6 {[%clk 0:02:54]} 7. Be2 {[%clk 0:02:55]}  Nxd4 {[%clk 0:02:54]} 8. Qxd4 {[%clk 0:02:55]}  Bg7 {[%clk 0:02:55]} 9. Be3 {[%clk 0:02:55]}  O-O {[%clk 0:02:56]} 10. Qd2 {[%clk 0:02:55]}  a5 {[%clk 0:02:56]} 11. f3 {[%clk 0:02:52]}  a4 {[%clk 0:02:57]} 12. Rc1 {[%clk 0:02:51]}  Be6 {[%clk 0:02:48]} 13. O-O {[%clk 0:02:33]}  Qa5 {[%clk 0:02:39]} 14. Rfd1 {[%clk 0:02:20]}  Rfc8 {[%clk 0:02:38]} 15. Nd5 {[%clk 0:02:11]}  Qxd2 {[%clk 0:02:36]} 16. Rxd2 {[%clk 0:02:10]}  Bxd5 {[%clk 0:02:29]} 17. exd5 {[%clk 0:02:09]}  Nd7 {[%clk 0:02:26]} 18. f4 {[%clk 0:01:39]}  Nc5 {[%clk 0:02:23]} 19. Bf3 {[%clk 0:01:36]}  a3 {[%clk 0:02:15]} 20. bxa3 {[%clk 0:00:59]}  Rxa3 {[%clk 0:02:16]} 21. Bxc5 {[%clk 0:00:54]}  Rxc5 {[%clk 0:02:13]} 22. Rb1 {[%clk 0:00:54]}  Rxc4 {[%clk 0:02:05]} 23. Rxb7 {[%clk 0:00:52]}  Bf6 {[%clk 0:01:46]} 24. Rb3 {[%clk 0:00:42]}  Rxb3 {[%clk 0:01:39]} 25. axb3 {[%clk 0:00:42]}  Rxf4 {[%clk 0:01:40]} 26. Ra2 {[%clk 0:00:22]}  Rb4 {[%clk 0:01:38]} 27. Bd1 {[%clk 0:00:18]}  Rd4 {[%clk 0:01:27]} 28. Bf3 {[%clk 0:00:18]}  Rb4 {[%clk 0:01:03]} 29. Ra3 {[%clk 0:00:14]}  Bd4+ {[%clk 0:00:45]} 30. Kf1 {[%clk 0:00:14]}  Bc5 {[%clk 0:00:46]} 31. Be2 {[%clk 0:00:10]}  Rb8 {[%clk 0:00:41]} 32. b4 {[%clk 0:00:04]}  Rxb4 {[%clk 0:00:39]} 33. Ra8+ {[%clk 0:00:04]}  Kg7 {[%clk 0:00:40]} 34. g3 {[%clk 0:00:04]}  Rb1+ {[%clk 0:00:36]} 35. Kg2 {[%clk 0:00:04]}  Rb2 {[%clk 0:00:37]} 36. Kf3 {[%clk 0:00:05]}  Rd2 {[%clk 0:00:34]} 37. Re8 {[%clk 0:00:03]}  Kf6 {[%clk 0:00:33]} 38. Bc4 {[%clk 0:00:02]}  Rxh2 {[%clk 0:00:32]} 39. g4 {[%clk 0:00:01]}  Rh3+ {[%clk 0:00:32]} 40. Kg2 {[%clk 0:00:01]}  Rc3 {[%clk 0:00:32]} 41. Bb5 {[%clk 0:00:01]}  Re3 {[%clk 0:00:27]} 42. Bc6 {[%clk 0:00:01]}  Kg5 {[%clk 0:00:27]} 43. Rh8 {[%clk 0:00:00]}  h6 {[%clk 0:00:27]} 0-1


[Site "https://www.chess.com"]

[Event "Titled Tuesday Blitz July 11 Early 2023"]
[White "Al-Tarboush, Ward"]
[Black "Horobetz, Graham"]
[WhiteFideId "7601450"]
[BlackFideId "2047322"]
[WhiteElo "2598"]
[BlackElo "2562"]
[Result "0-1"]
[Round "8"]
[TimeControl "180+2"]
[Date "2023.07.11"]
[WhiteClock "0:00:37"]
[BlackClock "0:00:06"]
[Board "73"]

1. e4 {[%clk 0:03:00]}  c5 {[%clk 0:02:59]} 2. Nf3 {[%clk 0:02:57]}  d6 {[%clk 0:02:59]} 3. d4 {[%clk 0:02:57]}  cxd4 {[%clk 0:03:00]} 4. Nxd4 {[%clk 0:02:58]}  Nf6 {[%clk 0:03:01]} 5. Nc3 {[%clk 0:02:58]}  a6 {[%clk 0:03:01]} 6. h3 {[%clk 0:02:58]}  e5 {[%clk 0:03:01]} 7. Nde2 {[%clk 0:02:57]}  h5 {[%clk 0:03:02]} 8. Bg5 {[%clk 0:02:57]}  Be6 {[%clk 0:03:01]} 9. g3 {[%clk 0:02:56]}  Nbd7 {[%clk 0:02:51]} 10. a4 {[%clk 0:02:55]}  Rc8 {[%clk 0:02:51]} 11. Bg2 {[%clk 0:02:55]}  Be7 {[%clk 0:02:49]} 12. b3 {[%clk 0:02:54]}  Qa5 {[%clk 0:02:23]} 13. Qd2 {[%clk 0:02:49]}  b5 {[%clk 0:02:14]} 14. O-O {[%clk 0:02:46]}  b4 {[%clk 0:02:12]} 15. Na2 {[%clk 0:02:35]}  d5 {[%clk 0:01:55]} 16. exd5 {[%clk 0:02:31]}  Bxd5 {[%clk 0:01:55]} 17. Bxd5 {[%clk 0:02:23]}  Qxd5 {[%clk 0:01:43]} 18. Qxd5 {[%clk 0:02:22]}  Nxd5 {[%clk 0:01:44]} 19. Bxe7 {[%clk 0:02:22]}  Kxe7 {[%clk 0:01:45]} 20. Rfd1 {[%clk 0:02:05]}  Rxc2 {[%clk 0:01:36]} 21. Rxd5 {[%clk 0:02:05]}  Rxe2 {[%clk 0:01:36]} 22. Nxb4 {[%clk 0:02:04]}  Rc8 {[%clk 0:01:23]} 23. Rad1 {[%clk 0:02:01]}  Nf6 {[%clk 0:01:21]} 24. R5d3 {[%clk 0:01:57]}  a5 {[%clk 0:01:16]} 25. Nd5+ {[%clk 0:01:55]}  Ke6 {[%clk 0:01:08]} 26. Ne3 {[%clk 0:01:49]}  Ne4 {[%clk 0:01:04]} 27. f3 {[%clk 0:01:45]}  Nxg3 {[%clk 0:00:59]} 28. Rd6+ {[%clk 0:01:37]}  Ke7 {[%clk 0:00:59]} 29. Rd7+ {[%clk 0:01:37]}  Kf8 {[%clk 0:00:55]} 30. Nc4 {[%clk 0:01:35]}  Nf5 {[%clk 0:00:34]} 31. Ra7 {[%clk 0:01:29]}  Re8 {[%clk 0:00:16]} 32. Rdd7 {[%clk 0:01:26]}  Kg8 {[%clk 0:00:12]} 33. Rxf7 {[%clk 0:01:22]}  Rd8 {[%clk 0:00:10]} 34. Rad7 {[%clk 0:01:11]}  Rxd7 {[%clk 0:00:10]} 35. Rxd7 {[%clk 0:01:12]}  Nh4 {[%clk 0:00:10]} 36. Nxa5 {[%clk 0:01:09]}  Nxf3+ {[%clk 0:00:10]} 37. Kf1 {[%clk 0:01:09]}  Rb2 {[%clk 0:00:10]} 38. Rd3 {[%clk 0:01:01]}  e4 {[%clk 0:00:09]} 39. Re3 {[%clk 0:01:01]}  g5 {[%clk 0:00:08]} 40. Nc6 {[%clk 0:00:57]}  g4 {[%clk 0:00:07]} 41. hxg4 {[%clk 0:00:58]}  hxg4 {[%clk 0:00:08]} 42. Ne7+ {[%clk 0:00:58]}  Kf7 {[%clk 0:00:07]} 43. Nf5 {[%clk 0:00:59]}  Kf6 {[%clk 0:00:07]} 44. Ng3 {[%clk 0:00:59]}  Ke5 {[%clk 0:00:07]} 45. Rxe4+ {[%clk 0:00:58]}  Kd5 {[%clk 0:00:07]} 46. Rxg4 {[%clk 0:00:51]}  Nh2+ {[%clk 0:00:07]} 47. Ke1 {[%clk 0:00:51]}  Nxg4 {[%clk 0:00:07]} 48. Kd1 {[%clk 0:00:47]}  Rxb3 {[%clk 0:00:07]} 49. Ne2 {[%clk 0:00:47]}  Ra3 {[%clk 0:00:07]} 50. Kc2 {[%clk 0:00:48]}  Ne3+ {[%clk 0:00:07]} 51. Kb2 {[%clk 0:00:48]}  Nc4+ {[%clk 0:00:08]} 52. Kc2 {[%clk 0:00:48]}  Kc5 {[%clk 0:00:07]} 53. Nc3 {[%clk 0:00:48]}  Ra1 {[%clk 0:00:06]} 54. Kb3 {[%clk 0:00:46]}  Rh1 {[%clk 0:00:05]} 55. Ne4+ {[%clk 0:00:45]}  Kd4 {[%clk 0:00:05]} 56. Ng5 {[%clk 0:00:44]}  Rf1 {[%clk 0:00:04]} 57. Ne6+ {[%clk 0:00:44]}  Kd5 {[%clk 0:00:04]} 58. Nc7+ {[%clk 0:00:44]}  Kc6 {[%clk 0:00:04]} 59. Nb5 {[%clk 0:00:44]}  Nb6 {[%clk 0:00:04]} 60. Nd4+ {[%clk 0:00:43]}  Kb7 {[%clk 0:00:04]} 61. a5 {[%clk 0:00:43]}  Nd7 {[%clk 0:00:02]} 62. Kc4 {[%clk 0:00:44]}  Nb8 {[%clk 0:00:02]} 63. Ne6 {[%clk 0:00:44]}  Rc1+ {[%clk 0:00:03]} 64. Kb5 {[%clk 0:00:45]}  Rd1 {[%clk 0:00:03]} 65. Nc5+ {[%clk 0:00:45]}  Ka7 {[%clk 0:00:04]} 66. Na4 {[%clk 0:00:43]}  Nd7 {[%clk 0:00:04]} 67. Kc6 {[%clk 0:00:42]}  Ne5+ {[%clk 0:00:03]} 68. Kc7 {[%clk 0:00:42]}  Rd7+ {[%clk 0:00:03]} 69. Kc8 {[%clk 0:00:42]}  Rh7 {[%clk 0:00:04]} 70. Nc3 {[%clk 0:00:41]}  Nc6 {[%clk 0:00:04]} 71. Nb5+ {[%clk 0:00:32]}  Ka6 {[%clk 0:00:04]} 72. Nc7+ {[%clk 0:00:33]}  Kxa5 {[%clk 0:00:04]} 73. Kb7 {[%clk 0:00:33]}  Nd8+ {[%clk 0:00:04]} 74. Ka8 {[%clk 0:00:34]}  Rxc7 {[%clk 0:00:03]} 75. Kb8 {[%clk 0:00:35]}  Rd7 {[%clk 0:00:03]} 76. Ka8 {[%clk 0:00:36]}  Rd2 {[%clk 0:00:04]} 77. Kb8 {[%clk 0:00:37]}  Kb6 {[%clk 0:00:05]} 78. Ka8 {[%clk 0:00:38]}  Rc2 {[%clk 0:00:05]} 79. Kb8 {[%clk 0:00:37]}  Rc1 {[%clk 0:00:06]} 0-1


[Site "https://www.chess.com"]

[Event "Titled Tuesday Blitz July 11 Early 2023"]
[White "Kleiman, Jake"]
[Black "Lana Rodriguez, David"]
[WhiteFideId "2020041"]
[BlackFideId "2270803"]
[WhiteElo "2499"]
[BlackElo "2597"]
[Result "1-0"]
[Round "8"]
[TimeControl "180+2"]
[Date "2023.07.11"]
[WhiteClock "0:00:10"]
[BlackClock "0:00:49"]
[Board "74"]

1. e4 {[%clk 0:03:00]}  e6 {[%clk 0:02:59]} 2. d3 {[%clk 0:02:57]}  d5 {[%clk 0:02:59]} 3. Qe2 {[%clk 0:02:36]}  Nc6 {[%clk 0:02:57]} 4. Nf3 {[%clk 0:02:36]}  Nf6 {[%clk 0:02:55]} 5. g3 {[%clk 0:02:36]}  dxe4 {[%clk 0:02:54]} 6. dxe4 {[%clk 0:02:34]}  e5 {[%clk 0:02:54]} 7. Bg2 {[%clk 0:02:33]}  Bc5 {[%clk 0:02:54]} 8. O-O {[%clk 0:02:34]}  O-O {[%clk 0:02:54]} 9. c3 {[%clk 0:02:34]}  Qe7 {[%clk 0:02:51]} 10. b4 {[%clk 0:02:35]}  Bb6 {[%clk 0:02:51]} 11. a4 {[%clk 0:02:35]}  a5 {[%clk 0:02:51]} 12. b5 {[%clk 0:02:35]}  Nb8 {[%clk 0:02:51]} 13. Nbd2 {[%clk 0:02:35]}  Be6 {[%clk 0:02:45]} 14. Nxe5 {[%clk 0:02:33]}  Qc5 {[%clk 0:02:40]} 15. Nec4 {[%clk 0:02:28]}  Rd8 {[%clk 0:02:33]} 16. Ba3 {[%clk 0:02:19]}  Qg5 {[%clk 0:02:33]} 17. Nf3 {[%clk 0:02:03]}  Qh5 {[%clk 0:02:27]} 18. Nxb6 {[%clk 0:01:43]}  cxb6 {[%clk 0:02:28]} 19. Be7 {[%clk 0:01:43]}  Rc8 {[%clk 0:02:21]} 20. Bxf6 {[%clk 0:01:39]}  gxf6 {[%clk 0:02:21]} 21. Qe3 {[%clk 0:01:37]}  Nd7 {[%clk 0:02:20]} 22. Nd4 {[%clk 0:01:32]}  Nc5 {[%clk 0:02:17]} 23. f4 {[%clk 0:01:22]}  Re8 {[%clk 0:02:15]} 24. Rfe1 {[%clk 0:01:11]}  Bh3 {[%clk 0:02:12]} 25. Bxh3 {[%clk 0:01:07]}  Qxh3 {[%clk 0:02:12]} 26. Qf3 {[%clk 0:01:08]}  Rad8 {[%clk 0:02:08]} 27. Re2 {[%clk 0:01:04]}  f5 {[%clk 0:01:57]} 28. e5 {[%clk 0:00:59]}  Rd7 {[%clk 0:01:50]} 29. Rae1 {[%clk 0:00:52]}  Red8 {[%clk 0:01:49]} 30. Qg2 {[%clk 0:00:37]}  Qg4 {[%clk 0:01:49]} 31. h3 {[%clk 0:00:33]}  Qh5 {[%clk 0:01:47]} 32. g4 {[%clk 0:00:28]}  fxg4 {[%clk 0:01:47]} 33. hxg4 {[%clk 0:00:29]}  Qh6 {[%clk 0:01:45]} 34. Qf3 {[%clk 0:00:27]}  Rxd4 {[%clk 0:01:43]} 35. cxd4 {[%clk 0:00:27]}  Rxd4 {[%clk 0:01:44]} 36. Rf1 {[%clk 0:00:18]}  Qe6 {[%clk 0:01:39]} 37. f5 {[%clk 0:00:18]}  Qc4 {[%clk 0:01:39]} 38. Rg2 {[%clk 0:00:14]}  Rd3 {[%clk 0:01:35]} 39. Qf2 {[%clk 0:00:12]}  Ne4 {[%clk 0:01:30]} 40. Qf4 {[%clk 0:00:12]}  Qd4+ {[%clk 0:01:30]} 41. Kh2 {[%clk 0:00:12]}  Re3 {[%clk 0:01:21]} 42. e6 {[%clk 0:00:12]}  fxe6 {[%clk 0:01:11]} 43. fxe6 {[%clk 0:00:13]}  Qd6 {[%clk 0:01:12]} 44. Qxd6 {[%clk 0:00:12]}  Nxd6 {[%clk 0:01:12]} 45. Rf6 {[%clk 0:00:11]}  Kg7 {[%clk 0:01:12]} 46. Rgf2 {[%clk 0:00:12]}  Re4 {[%clk 0:01:11]} 47. Kg3 {[%clk 0:00:12]}  Rxa4 {[%clk 0:01:10]} 48. Kh4 {[%clk 0:00:11]}  Rb4 {[%clk 0:01:08]} 49. Rf8 {[%clk 0:00:11]}  Re4 {[%clk 0:01:07]} 50. R8f6 {[%clk 0:00:11]}  Re5 {[%clk 0:01:06]} 51. g5 {[%clk 0:00:11]}  Re4+ {[%clk 0:01:05]} 52. Kh3 {[%clk 0:00:11]}  Re5 {[%clk 0:01:05]} 53. Kg4 {[%clk 0:00:10]}  Re4+ {[%clk 0:00:59]} 54. Kh5 {[%clk 0:00:11]}  Re5 {[%clk 0:00:59]} 55. Rc2 {[%clk 0:00:10]}  Nxb5 {[%clk 0:00:51]} 56. Rf7+ {[%clk 0:00:09]}  Kg8 {[%clk 0:00:49]} 57. Rc8# {[%clk 0:00:10]} 1-0


[Site "https://www.chess.com"]